[Event "Betsys MČR v online bleskovém šachu 2021"]
[Site "Chess.com"]
[Date "2021.04.17"]
[Round "7"]
[White "adambelaska"]
[Black "Vitana"]
[Result "0-1"]
[WhiteElo "1431"]
[BlackElo "1808"]
[TimeControl "180+1"]
[EndTime "10:10:16 PDT"]
[Termination "Uživatel Vitana zvítězil po vzdání soupeře"]

1. d4 {[%clk 0:03:00.9]} 1... e6 {[%clk 0:02:40]} 2. c4 {[%clk 0:02:58.3]} 2...
d5 {[%clk 0:02:38]} 3. Nf3 {[%clk 0:02:54.6]} 3... Nf6 {[%clk 0:02:36.9]} 4. Nc3
{[%clk 0:02:53.1]} 4... Be7 {[%clk 0:02:37.1]} 5. Bf4 {[%clk 0:02:51.9]} 5...
O-O {[%clk 0:02:37]} 6. e3 {[%clk 0:02:50.5]} 6... c6 {[%clk 0:02:36.9]} 7. Bd3
{[%clk 0:02:50.2]} 7... Nbd7 {[%clk 0:02:35.6]} 8. cxd5 {[%clk 0:02:50]} 8...
exd5 {[%clk 0:02:35]} 9. O-O {[%clk 0:02:49.2]} 9... Re8 {[%clk 0:02:34.6]} 10.
Qc2 {[%clk 0:02:49.2]} 10... Nf8 {[%clk 0:02:34]} 11. Ng5 {[%clk 0:02:49.1]}
11... h6 {[%clk 0:02:30.5]} 12. Nf3 {[%clk 0:02:47.8]} 12... Ne6 {[%clk
0:02:30.3]} 13. Bg3 {[%clk 0:02:47.2]} 13... Bd7 {[%clk 0:02:27.5]} 14. Ne5
{[%clk 0:02:46.7]} 14... Rc8 {[%clk 0:02:25.7]} 15. Nxf7 {[%clk 0:02:40.7]}
15... Kxf7 {[%clk 0:02:25.4]} 16. Bg6+ {[%clk 0:02:39.9]} 16... Kg8 {[%clk
0:02:23.7]} 17. Bxe8 {[%clk 0:02:38.7]} 17... Qxe8 {[%clk 0:02:22.9]} 18. Rac1
{[%clk 0:02:36.5]} 18... Nh5 {[%clk 0:02:12.4]} 19. Be5 {[%clk 0:02:35.6]} 19...
Bf6 {[%clk 0:02:12.3]} 20. Bxf6 {[%clk 0:02:34.7]} 20... Nxf6 {[%clk 0:02:11.8]}
21. e4 {[%clk 0:02:33.7]} 21... dxe4 {[%clk 0:02:07.7]} 22. Nxe4 {[%clk
0:02:32.7]} 22... Nxe4 {[%clk 0:02:04.7]} 23. Qxe4 {[%clk 0:02:32.5]} 23... Ng5
{[%clk 0:02:03.5]} 24. Qxe8+ {[%clk 0:02:31.2]} 24... Rxe8 {[%clk 0:02:02.9]}
25. Rfe1 {[%clk 0:02:31.1]} 25... Kf7 {[%clk 0:01:59.3]} 26. d5 {[%clk
0:02:24.2]} 26... Rxe1+ {[%clk 0:01:54.4]} 27. Rxe1 {[%clk 0:02:23]} 27... cxd5
{[%clk 0:01:54.5]} 28. Rc1 {[%clk 0:02:20.3]} 28... Bc6 {[%clk 0:01:54.3]} 29.
b4 {[%clk 0:02:18.9]} 29... a6 {[%clk 0:01:53.6]} 30. a4 {[%clk 0:02:16]} 30...
Ke6 {[%clk 0:01:49.3]} 31. b5 {[%clk 0:02:11.9]} 31... axb5 {[%clk 0:01:48.8]}
32. axb5 {[%clk 0:02:11.4]} 32... Bxb5 {[%clk 0:01:47.9]} 33. Rc7 {[%clk
0:02:10.6]} 33... Bc6 {[%clk 0:01:42]} 34. Kf1 {[%clk 0:02:09.2]} 34... g6
{[%clk 0:01:37.4]} 35. f4 {[%clk 0:02:05.7]} 35... Ne4 {[%clk 0:01:33.7]} 36.
Rh7 {[%clk 0:02:04.6]} 36... h5 {[%clk 0:01:32.5]} 37. Rh6 {[%clk 0:02:04.1]}
37... Kf5 {[%clk 0:01:30.7]} 38. g3 {[%clk 0:02:03.2]} 38... d4 {[%clk
0:01:29.5]} 39. Ke2 {[%clk 0:02:03]} 39... Bb5+ {[%clk 0:01:27.1]} 40. Kf3
{[%clk 0:02:02.6]} 40... Nd2+ {[%clk 0:01:24.3]} 41. Kg2 {[%clk 0:02:01.8]}
41... Bd3 {[%clk 0:01:21.4]} 42. h3 {[%clk 0:01:58]} 42... Ke4 {[%clk
0:01:20.7]} 43. Rxg6 {[%clk 0:01:54.4]} 43... Ke3 {[%clk 0:01:20.5]} 44. Re6+
{[%clk 0:01:54]} 44... Ne4 {[%clk 0:01:20]} 45. g4 {[%clk 0:01:53.9]} 45... hxg4
{[%clk 0:01:19.2]} 46. hxg4 {[%clk 0:01:54]} 46... Bc4 {[%clk 0:01:17.7]} 47.
Re7 {[%clk 0:01:48.3]} 47... d3 {[%clk 0:01:17.6]} 48. Rxb7 {[%clk 0:01:46.8]}
48... d2 {[%clk 0:01:17.1]} 49. Rb1 {[%clk 0:01:46.3]} 49... Nc3 {[%clk
0:01:16.8]} 50. Ra1 {[%clk 0:01:44.5]} 50... Bd3 {[%clk 0:01:15.2]} 51. f5
{[%clk 0:01:42.5]} 51... Bb1 {[%clk 0:01:14.4]} 52. f6 {[%clk 0:01:38.5]} 52...
d1=Q {[%clk 0:01:13.4]} 53. Ra8 {[%clk 0:01:36.2]} 53... Qxg4+ {[%clk
0:01:12.7]} 54. Kf1 {[%clk 0:01:35.2]} 0-1

[Event "Betsys MČR v online bleskovém šachu 2021"]
[Site "Chess.com"]
[Date "2021.04.17"]
[Round "7"]
[White "Hollow_Head"]
[Black "Z_u_z_i"]
[Result "0-1"]
[WhiteElo "1071"]
[BlackElo "1542"]
[TimeControl "180+1"]
[EndTime "10:10:19 PDT"]
[Termination "Uživatel Z_u_z_i zvítězil matem"]

1. e4 {[%clk 0:03:00.9]} 1... c5 {[%clk 0:02:59.2]} 2. Nf3 {[%clk 0:03:00.4]}
2... e6 {[%clk 0:02:58.9]} 3. Nc3 {[%clk 0:03:00.4]} 3... Nc6 {[%clk 0:02:56.5]}
4. g3 {[%clk 0:03:00.4]} 4... Nf6 {[%clk 0:02:54]} 5. Bg2 {[%clk 0:03:00]} 5...
a6 {[%clk 0:02:53.3]} 6. O-O {[%clk 0:02:59.9]} 6... Be7 {[%clk 0:02:53.1]} 7.
d3 {[%clk 0:02:59.8]} 7... O-O {[%clk 0:02:52.3]} 8. Bg5 {[%clk 0:02:58.5]} 8...
d5 {[%clk 0:02:49.3]} 9. exd5 {[%clk 0:02:58]} 9... exd5 {[%clk 0:02:44]} 10.
Bxf6 {[%clk 0:02:57.4]} 10... Bxf6 {[%clk 0:02:42.7]} 11. Ne2 {[%clk 0:02:52.3]}
11... Bg4 {[%clk 0:02:41.2]} 12. c3 {[%clk 0:02:51.4]} 12... Re8 {[%clk
0:02:39]} 13. Nf4 {[%clk 0:02:48.4]} 13... Qd7 {[%clk 0:02:28.9]} 14. h3 {[%clk
0:02:46.4]} 14... Be6 {[%clk 0:02:18.4]} 15. Nxe6 {[%clk 0:02:45.8]} 15... Rxe6
{[%clk 0:02:17.9]} 16. Re1 {[%clk 0:02:44.6]} 16... Rae8 {[%clk 0:02:16.9]} 17.
Rxe6 {[%clk 0:02:44.1]} 17... Rxe6 {[%clk 0:02:16.5]} 18. Qf1 {[%clk 0:02:44.2]}
18... h6 {[%clk 0:02:10]} 19. Re1 {[%clk 0:02:43.2]} 19... b6 {[%clk 0:02:07.8]}
20. Rxe6 {[%clk 0:02:42.6]} 20... Qxe6 {[%clk 0:02:07.3]} 21. c4 {[%clk
0:02:36.4]} 21... dxc4 {[%clk 0:02:04.7]} 22. dxc4 {[%clk 0:02:37]} 22... Bxb2
{[%clk 0:01:59.7]} 23. Qb1 {[%clk 0:02:27.4]} 23... Qf6 {[%clk 0:01:46.9]} 24.
Nd2 {[%clk 0:02:20]} 24... Nb4 {[%clk 0:01:37.8]} 25. Ne4 {[%clk 0:02:17.7]}
25... Qd4 {[%clk 0:01:30.8]} 26. h4 {[%clk 0:02:06.8]} 26... Nd3 {[%clk
0:01:30.1]} 27. Kf1 {[%clk 0:01:42.7]} 27... f5 {[%clk 0:01:28.4]} 28. Ke2
{[%clk 0:01:37.9]} 28... fxe4 {[%clk 0:01:26.9]} 29. Kd2 {[%clk 0:01:30.9]}
29... Nxf2+ {[%clk 0:01:21.4]} 30. Ke1 {[%clk 0:01:25.4]} 30... e3 {[%clk
0:01:11.4]} 31. Bd5+ {[%clk 0:01:23]} 31... Kh8 {[%clk 0:01:07.6]} 32. Qf5
{[%clk 0:01:04.5]} 32... Bc3+ {[%clk 0:01:06.6]} 33. Kf1 {[%clk 0:01:02.6]}
33... Qd1+ {[%clk 0:00:56.7]} 34. Kg2 {[%clk 0:01:01]} 34... Qh1# {[%clk
0:00:50.8]} 0-1

[Event "Betsys MČR v online bleskovém šachu 2021"]
[Site "Chess.com"]
[Date "2021.04.17"]
[Round "7"]
[White "MilosJi"]
[Black "Tretrik"]
[Result "1-0"]
[WhiteElo "2574"]
[BlackElo "2128"]
[TimeControl "180+1"]
[EndTime "10:10:22 PDT"]
[Termination "Uživatel MilosJi zvítězil po vzdání soupeře"]

1. Nf3 {[%clk 0:03:00.9]} 1... f5 {[%clk 0:02:58.3]} 2. g3 {[%clk 0:03:00.5]}
2... Nf6 {[%clk 0:02:58.7]} 3. Bg2 {[%clk 0:03:01.2]} 3... g6 {[%clk 0:02:59.2]}
4. O-O {[%clk 0:03:02]} 4... Bg7 {[%clk 0:02:59.7]} 5. d4 {[%clk 0:03:02.4]}
5... O-O {[%clk 0:03:00]} 6. b3 {[%clk 0:03:02.8]} 6... b6 {[%clk 0:02:56]} 7.
Bb2 {[%clk 0:03:03]} 7... Bb7 {[%clk 0:02:56]} 8. c4 {[%clk 0:03:03.2]} 8... e6
{[%clk 0:02:55.8]} 9. Nc3 {[%clk 0:03:03.2]} 9... a5 {[%clk 0:02:55.4]} 10. Rc1
{[%clk 0:02:59]} 10... Qe7 {[%clk 0:02:46.2]} 11. Re1 {[%clk 0:02:47.5]} 11...
d6 {[%clk 0:02:30.8]} 12. e3 {[%clk 0:02:42]} 12... Nbd7 {[%clk 0:02:27.8]} 13.
Nd2 {[%clk 0:02:36.5]} 13... Bxg2 {[%clk 0:02:25.1]} 14. Kxg2 {[%clk 0:02:37.4]}
14... h5 {[%clk 0:02:16.4]} 15. f4 {[%clk 0:02:21.4]} 15... e5 {[%clk
0:02:10.7]} 16. h3 {[%clk 0:02:14.3]} 16... h4 {[%clk 0:02:02.2]} 17. Qf3 {[%clk
0:02:09.2]} 17... e4 {[%clk 0:01:57.3]} 18. Qf2 {[%clk 0:02:09.2]} 18... hxg3
{[%clk 0:01:44.8]} 19. Qxg3 {[%clk 0:02:09.4]} 19... Kf7 {[%clk 0:01:44.3]} 20.
Rg1 {[%clk 0:02:05.2]} 20... Nh5 {[%clk 0:01:44.1]} 21. Qf2 {[%clk 0:02:03.7]}
21... Bf6 {[%clk 0:01:44]} 22. Nd5 {[%clk 0:02:00.1]} 22... Bh4 {[%clk
0:01:39.9]} 23. Nxe7 {[%clk 0:01:55.7]} 23... Bxf2 {[%clk 0:01:37.7]} 24. Kxf2
{[%clk 0:01:56]} 24... Kxe7 {[%clk 0:01:36.1]} 25. Rxg6 {[%clk 0:01:55.7]} 25...
Rg8 {[%clk 0:00:49.7]} 26. Rcg1 {[%clk 0:01:52.8]} 26... Kf7 {[%clk 0:00:49.3]}
27. R6g5 {[%clk 0:01:47.3]} 27... Rxg5 {[%clk 0:00:23.5]} 28. Rxg5 {[%clk
0:01:46.3]} 28... Ng7 {[%clk 0:00:23.6]} 29. Nb1 {[%clk 0:01:36.6]} 29... c6
{[%clk 0:00:20.3]} 30. d5 {[%clk 0:01:32.5]} 30... Nf6 {[%clk 0:00:19.6]} 31.
dxc6 {[%clk 0:01:32]} 31... Rc8 {[%clk 0:00:19.5]} 32. Nc3 {[%clk 0:01:30.8]}
32... Rxc6 {[%clk 0:00:19.1]} 33. Nd5 {[%clk 0:01:30.5]} 1-0

[Event "Betsys MČR v online bleskovém šachu 2021"]
[Site "Chess.com"]
[Date "2021.04.17"]
[Round "7"]
[White "TTCZ"]
[Black "Mikkes33"]
[Result "0-1"]
[WhiteElo "1459"]
[BlackElo "1410"]
[TimeControl "180+1"]
[EndTime "10:10:22 PDT"]
[Termination "Uživatel Mikkes33 zvítězil po vzdání soupeře"]

1. e4 {[%clk 0:02:32.3]} 1... c5 {[%clk 0:02:58.1]} 2. Nc3 {[%clk 0:02:32.3]}
2... Nc6 {[%clk 0:02:55]} 3. f4 {[%clk 0:02:33.2]} 3... e6 {[%clk 0:02:48.9]} 4.
Nf3 {[%clk 0:02:33.7]} 4... d5 {[%clk 0:02:48.1]} 5. exd5 {[%clk 0:02:33.2]}
5... exd5 {[%clk 0:02:47.6]} 6. d3 {[%clk 0:02:33.6]} 6... Bd6 {[%clk
0:02:44.4]} 7. Be2 {[%clk 0:02:32.2]} 7... d4 {[%clk 0:02:40.8]} 8. Ne4 {[%clk
0:02:31.5]} 8... Nf6 {[%clk 0:02:32.2]} 9. Nxd6+ {[%clk 0:02:30.4]} 9... Qxd6
{[%clk 0:02:31.3]} 10. O-O {[%clk 0:02:30.6]} 10... O-O {[%clk 0:02:29]} 11. c3
{[%clk 0:02:30]} 11... Be6 {[%clk 0:02:19.9]} 12. c4 {[%clk 0:02:20.1]} 12...
Rfe8 {[%clk 0:02:13.8]} 13. Rf2 {[%clk 0:02:18.1]} 13... Ng4 {[%clk 0:02:08.5]}
14. Rf1 {[%clk 0:02:17.2]} 14... Bf5 {[%clk 0:01:57.2]} 15. h3 {[%clk
0:02:16.1]} 15... Ne3 {[%clk 0:01:52.2]} 16. Bxe3 {[%clk 0:02:14.6]} 16... Rxe3
{[%clk 0:01:46.1]} 17. Qd2 {[%clk 0:02:13.7]} 17... Rae8 {[%clk 0:01:36.7]} 18.
Rf2 {[%clk 0:02:07.5]} 18... Qxf4 {[%clk 0:01:33.2]} 19. Re1 {[%clk 0:01:56.8]}
19... Nb4 {[%clk 0:01:30.2]} 20. a3 {[%clk 0:01:55.1]} 20... Nc6 {[%clk
0:01:13.1]} 21. b4 {[%clk 0:01:53.8]} 21... cxb4 {[%clk 0:01:08]} 22. axb4
{[%clk 0:01:54.7]} 22... Qd6 {[%clk 0:00:57.3]} 23. b5 {[%clk 0:01:53.8]} 23...
Nb4 {[%clk 0:00:54.4]} 24. Nxd4 {[%clk 0:01:45.4]} 24... Qxd4 {[%clk 0:00:48.3]}
25. Qxb4 {[%clk 0:01:42.2]} 25... Rxe2 {[%clk 0:00:46.1]} 26. Rf1 {[%clk
0:01:24.1]} 26... Rxf2 {[%clk 0:00:43.5]} 27. Rxf2 {[%clk 0:01:25]} 27... Bxd3
{[%clk 0:00:42.3]} 28. Qd2 {[%clk 0:01:19]} 28... Re2 {[%clk 0:00:36.3]} 29. Qf4
{[%clk 0:01:09.7]} 29... Qxf2+ {[%clk 0:00:34.5]} 30. Qxf2 {[%clk 0:01:08.9]}
30... Rxf2 {[%clk 0:00:34.3]} 31. Kxf2 {[%clk 0:01:09.8]} 31... Bxc4 {[%clk
0:00:34.4]} 0-1

[Event "Betsys MČR v online bleskovém šachu 2021"]
[Site "Chess.com"]
[Date "2021.04.17"]
[Round "7"]
[White "prosinec"]
[Black "sachovybukowski"]
[Result "1-0"]
[WhiteElo "1749"]
[BlackElo "1970"]
[TimeControl "180+1"]
[EndTime "10:10:28 PDT"]
[Termination "Uživatel prosinec zvítězil po vzdání soupeře"]

1. Nf3 {[%clk 0:03:00.9]} 1... c5 {[%clk 0:02:59.4]} 2. c4 {[%clk 0:02:59.8]}
2... g6 {[%clk 0:02:59.7]} 3. g3 {[%clk 0:02:59.3]} 3... Bg7 {[%clk 0:02:58.4]}
4. Bg2 {[%clk 0:02:59.2]} 4... Nc6 {[%clk 0:02:58.6]} 5. Nc3 {[%clk 0:02:58.8]}
5... h5 {[%clk 0:02:58.8]} 6. h4 {[%clk 0:02:57.7]} 6... Nf6 {[%clk 0:02:58.1]}
7. O-O {[%clk 0:02:57.3]} 7... d6 {[%clk 0:02:58.5]} 8. d4 {[%clk 0:02:55.6]}
8... cxd4 {[%clk 0:02:48.7]} 9. Nxd4 {[%clk 0:02:56.5]} 9... Bd7 {[%clk
0:02:48.5]} 10. e4 {[%clk 0:02:50.9]} 10... O-O {[%clk 0:02:47.3]} 11. Nd5
{[%clk 0:02:47.5]} 11... Nxd5 {[%clk 0:02:42.2]} 12. Nxc6 {[%clk 0:02:44.4]}
12... Nc3 {[%clk 0:02:21.2]} 13. Nxe7+ {[%clk 0:02:00.7]} 13... Qxe7 {[%clk
0:02:19.8]} 14. bxc3 {[%clk 0:02:00.5]} 14... Bxc3 {[%clk 0:02:18]} 15. Rb1
{[%clk 0:01:58.6]} 15... Bc6 {[%clk 0:02:16.6]} 16. Qd3 {[%clk 0:01:48.4]} 16...
Bg7 {[%clk 0:02:07.4]} 17. Bf4 {[%clk 0:01:43.2]} 17... Rfd8 {[%clk 0:02:02.6]}
18. Rfd1 {[%clk 0:01:30.1]} 18... Be5 {[%clk 0:02:02.3]} 19. Bg5 {[%clk
0:01:28.5]} 19... Bf6 {[%clk 0:01:57.7]} 20. Bf4 {[%clk 0:01:24.9]} 20... Be5
{[%clk 0:01:56.6]} 21. Bg5 {[%clk 0:01:18.7]} 21... f6 {[%clk 0:01:56.6]} 22.
Be3 {[%clk 0:01:16.6]} 22... d5 {[%clk 0:00:37.2]} 23. exd5 {[%clk 0:01:06.5]}
23... Ba4 {[%clk 0:00:35.3]} 24. Qxg6+ {[%clk 0:01:05.1]} 24... Kf8 {[%clk
0:00:33.9]} 25. Bh6+ {[%clk 0:01:03.6]} 25... Qg7 {[%clk 0:00:27.5]} 26. Qxg7+
{[%clk 0:01:00.1]} 1-0

[Event "Betsys MČR v online bleskovém šachu 2021"]
[Site "Chess.com"]
[Date "2021.04.17"]
[Round "7"]
[White "AdaTra"]
[Black "LightningAttack_2000"]
[Result "0-1"]
[WhiteElo "1653"]
[BlackElo "1904"]
[TimeControl "180+1"]
[EndTime "10:10:29 PDT"]
[Termination "Uživatel LightningAttack_2000 zvítězil po vzdání soupeře"]

1. d4 {[%clk 0:03:00.9]} 1... Nf6 {[%clk 0:02:59.6]} 2. Nf3 {[%clk 0:03:00.5]}
2... g6 {[%clk 0:02:59.6]} 3. Bf4 {[%clk 0:02:58.9]} 3... Bg7 {[%clk 0:02:59.7]}
4. Nbd2 {[%clk 0:02:58.6]} 4... d6 {[%clk 0:03:00]} 5. e4 {[%clk 0:02:58.4]}
5... Nbd7 {[%clk 0:02:58.1]} 6. Bc4 {[%clk 0:02:55.7]} 6... O-O {[%clk
0:02:55.8]} 7. O-O {[%clk 0:02:54.9]} 7... c6 {[%clk 0:02:54.2]} 8. h3 {[%clk
0:02:46.2]} 8... b5 {[%clk 0:02:51.4]} 9. Bb3 {[%clk 0:02:45.5]} 9... c5 {[%clk
0:02:49.2]} 10. d5 {[%clk 0:02:37.1]} 10... c4 {[%clk 0:02:46.6]} 11. Bxc4
{[%clk 0:02:30.5]} 11... bxc4 {[%clk 0:02:40.9]} 12. Nxc4 {[%clk 0:02:31.4]}
12... Ba6 {[%clk 0:02:40.2]} 13. Nfd2 {[%clk 0:02:24.5]} 13... Rc8 {[%clk
0:02:35.1]} 14. Qe2 {[%clk 0:02:21.3]} 14... Nb6 {[%clk 0:02:31.1]} 15. b3
{[%clk 0:01:55.3]} 15... Nh5 {[%clk 0:02:29.6]} 16. Be3 {[%clk 0:01:53.4]} 16...
Bxa1 {[%clk 0:02:29]} 17. Rxa1 {[%clk 0:01:53.3]} 17... Nxc4 {[%clk 0:02:26.3]}
18. bxc4 {[%clk 0:01:48]} 18... Qc7 {[%clk 0:02:26.3]} 19. Rb1 {[%clk
0:01:37.8]} 19... Bxc4 {[%clk 0:02:25.6]} 20. Qg4 {[%clk 0:01:32.7]} 20... Nf6
{[%clk 0:02:23.6]} 21. Qg5 {[%clk 0:01:23.7]} 21... Bxa2 {[%clk 0:02:18.3]} 22.
Rb2 {[%clk 0:01:20.2]} 22... Bc4 {[%clk 0:02:15.9]} 23. Bd4 {[%clk 0:01:14.8]}
23... a5 {[%clk 0:02:07.6]} 24. f4 {[%clk 0:01:11.7]} 24... Rb8 {[%clk
0:01:59.3]} 25. e5 {[%clk 0:01:06.8]} 25... Ne8 {[%clk 0:01:55.5]} 26. Qh6
{[%clk 0:01:02.1]} 26... Rxb2 {[%clk 0:01:50]} 27. exd6 {[%clk 0:00:55.8]} 27...
exd6 {[%clk 0:01:45.6]} 28. Bxb2 {[%clk 0:00:47.6]} 28... Bxd5 {[%clk
0:01:44.1]} 29. Nf1 {[%clk 0:00:36.2]} 29... Bxg2 {[%clk 0:01:38]} 30. Ne3
{[%clk 0:00:32.3]} 30... Qb6 {[%clk 0:01:28.7]} 31. Kxg2 {[%clk 0:00:25.2]}
31... Qxe3 {[%clk 0:01:27.5]} 32. f5 {[%clk 0:00:15.9]} 32... Qxh6 {[%clk
0:01:25.8]} 0-1

[Event "Betsys MČR v online bleskovém šachu 2021"]
[Site "Chess.com"]
[Date "2021.04.17"]
[Round "7"]
[White "sajmon8"]
[Black "jhdghaka"]
[Result "0-1"]
[WhiteElo "1618"]
[BlackElo "1873"]
[TimeControl "180+1"]
[EndTime "10:10:29 PDT"]
[Termination "Uživatel jhdghaka zvítězil po vzdání soupeře"]

1. e4 {[%clk 0:03:00.9]} 1... c5 {[%clk 0:02:59.9]} 2. Nf3 {[%clk 0:03:00.2]}
2... Nc6 {[%clk 0:02:59.7]} 3. d4 {[%clk 0:02:59.6]} 3... cxd4 {[%clk
0:03:00.6]} 4. Nxd4 {[%clk 0:02:58.9]} 4... Nf6 {[%clk 0:03:01.3]} 5. Nc3 {[%clk
0:02:56.9]} 5... e5 {[%clk 0:03:01.1]} 6. Ndb5 {[%clk 0:02:52.5]} 6... d6 {[%clk
0:03:00.3]} 7. Bg5 {[%clk 0:02:49.9]} 7... a6 {[%clk 0:03:00.6]} 8. Na3 {[%clk
0:02:44.9]} 8... b5 {[%clk 0:03:00.5]} 9. Nd5 {[%clk 0:02:42.9]} 9... Be7 {[%clk
0:02:59.6]} 10. Bxf6 {[%clk 0:02:42]} 10... Bxf6 {[%clk 0:03:00.5]} 11. c3
{[%clk 0:02:41.3]} 11... Bg5 {[%clk 0:02:55.6]} 12. Nc2 {[%clk 0:02:39.7]} 12...
O-O {[%clk 0:02:55.7]} 13. Nce3 {[%clk 0:02:38.5]} 13... f5 {[%clk 0:02:32.7]}
14. Bd3 {[%clk 0:02:29]} 14... f4 {[%clk 0:02:20.9]} 15. Nc2 {[%clk 0:02:24.4]}
15... Ne7 {[%clk 0:02:11.1]} 16. Be2 {[%clk 0:02:19.4]} 16... Be6 {[%clk
0:02:06.7]} 17. f3 {[%clk 0:02:16]} 17... Nxd5 {[%clk 0:01:58.9]} 18. exd5
{[%clk 0:02:14.9]} 18... Bf5 {[%clk 0:01:58.7]} 19. Bd3 {[%clk 0:02:12.6]} 19...
Bh4+ {[%clk 0:01:56.9]} 20. Kf1 {[%clk 0:02:07.3]} 20... Qg5 {[%clk 0:01:48.4]}
21. Bxf5 {[%clk 0:02:01.5]} 21... Rxf5 {[%clk 0:01:44.6]} 22. Nb4 {[%clk
0:01:59.4]} 22... Qg6 {[%clk 0:01:34.9]} 23. Nc6 {[%clk 0:01:53.9]} 23... Bf6
{[%clk 0:01:07.3]} 24. Qe2 {[%clk 0:01:12.1]} 24... Rg5 {[%clk 0:00:40.4]} 25.
Kf2 {[%clk 0:00:57.2]} 25... Rxg2+ {[%clk 0:00:38.7]} 0-1

[Event "Betsys MČR v online bleskovém šachu 2021"]
[Site "Chess.com"]
[Date "2021.04.17"]
[Round "7"]
[White "pudltomik"]
[Black "terezkai"]
[Result "1-0"]
[WhiteElo "754"]
[BlackElo "595"]
[TimeControl "180+1"]
[EndTime "10:10:29 PDT"]
[Termination "Uživatel pudltomik zvítězil na čas"]

1. e4 {[%clk 0:03:00.9]} 1... e5 {[%clk 0:02:58.3]} 2. Nf3 {[%clk 0:02:59.2]}
2... Nc6 {[%clk 0:02:52.9]} 3. Nc3 {[%clk 0:02:58.3]} 3... Nf6 {[%clk 0:02:52]}
4. d4 {[%clk 0:02:56.7]} 4... exd4 {[%clk 0:02:49.6]} 5. Nxd4 {[%clk 0:02:56.3]}
5... d5 {[%clk 0:02:47.9]} 6. Nf3 {[%clk 0:02:50]} 6... Bc5 {[%clk 0:02:19.1]}
7. Be3 {[%clk 0:02:46.1]} 7... Bxe3 {[%clk 0:02:16.2]} 8. fxe3 {[%clk
0:02:45.1]} 8... Bg4 {[%clk 0:02:09.8]} 9. Be2 {[%clk 0:02:43.7]} 9... O-O
{[%clk 0:01:50]} 10. Nxd5 {[%clk 0:02:32]} 10... Nxd5 {[%clk 0:01:46.1]} 11.
exd5 {[%clk 0:02:31.8]} 11... Ne7 {[%clk 0:01:27.5]} 12. c4 {[%clk 0:02:21.1]}
12... c6 {[%clk 0:01:16.2]} 13. O-O {[%clk 0:02:19.8]} 13... cxd5 {[%clk
0:01:14.8]} 14. Ne5 {[%clk 0:02:17]} 14... Rc8 {[%clk 0:00:59.6]} 15. Nxg4
{[%clk 0:02:15.6]} 15... Rxc4 {[%clk 0:00:52.9]} 16. Bxc4 {[%clk 0:02:13.9]}
16... dxc4 {[%clk 0:00:50.5]} 17. Qxd8 {[%clk 0:02:12.5]} 17... Rxd8 {[%clk
0:00:51.4]} 18. Ne5 {[%clk 0:02:09.5]} 18... Rd2 {[%clk 0:00:48.3]} 19. Nd7
{[%clk 0:02:06.6]} 19... Rxd7 {[%clk 0:00:37.5]} 20. e4 {[%clk 0:02:03]} 20...
Rd2 {[%clk 0:00:35]} 21. g4 {[%clk 0:02:01.8]} 21... Rxb2 {[%clk 0:00:25.9]} 22.
Rac1 {[%clk 0:01:59.6]} 22... Re2 {[%clk 0:00:24.7]} 23. Rxc4 {[%clk 0:01:57.6]}
23... Rxa2 {[%clk 0:00:22.4]} 24. Rc7 {[%clk 0:01:56.1]} 24... Kf8 {[%clk
0:00:20.3]} 25. Rxb7 {[%clk 0:01:53.6]} 25... Ng6 {[%clk 0:00:15.6]} 26. Rb8+
{[%clk 0:01:53]} 26... Ke7 {[%clk 0:00:14.3]} 27. Rb7+ {[%clk 0:01:52.6]} 27...
Ke6 {[%clk 0:00:11.9]} 28. g5 {[%clk 0:01:49.2]} 28... Nf4 {[%clk 0:00:12.8]}
29. Rxf4 {[%clk 0:01:48]} 29... Ra1+ {[%clk 0:00:10.2]} 30. Kg2 {[%clk
0:01:47.8]} 30... Rd1 {[%clk 0:00:08.3]} 31. Rxa7 {[%clk 0:01:45.6]} 31... Rd2+
{[%clk 0:00:08.1]} 32. Kg3 {[%clk 0:01:43.8]} 32... Ke5 {[%clk 0:00:07.3]} 33.
Rf1 {[%clk 0:01:42.1]} 33... Kxe4 {[%clk 0:00:03.6]} 34. Re7+ {[%clk 0:01:41.5]}
1-0

[Event "Betsys MČR v online bleskovém šachu 2021"]
[Site "Chess.com"]
[Date "2021.04.17"]
[Round "7"]
[White "Skalicky"]
[Black "Fafin1"]
[Result "0-1"]
[WhiteElo "890"]
[BlackElo "1205"]
[TimeControl "180+1"]
[EndTime "10:10:31 PDT"]
[Termination "Uživatel Fafin1 zvítězil na čas"]

1. d4 {[%clk 0:02:36.1]} 1... d5 {[%clk 0:02:59.3]} 2. c4 {[%clk 0:02:35.1]}
2... c6 {[%clk 0:02:58]} 3. Nc3 {[%clk 0:02:34]} 3... Bf5 {[%clk 0:02:55.8]} 4.
Nf3 {[%clk 0:02:26.9]} 4... e6 {[%clk 0:02:55.4]} 5. e3 {[%clk 0:02:21.8]} 5...
Bb4 {[%clk 0:02:54.5]} 6. a3 {[%clk 0:02:20.5]} 6... Ba5 {[%clk 0:02:49]} 7. Be2
{[%clk 0:02:07.4]} 7... Nf6 {[%clk 0:02:46.3]} 8. O-O {[%clk 0:01:57.8]} 8...
O-O {[%clk 0:02:41.5]} 9. cxd5 {[%clk 0:01:53.7]} 9... cxd5 {[%clk 0:02:39.5]}
10. Bd2 {[%clk 0:01:44.6]} 10... Nc6 {[%clk 0:02:36.9]} 11. b4 {[%clk
0:01:39.1]} 11... Bc7 {[%clk 0:02:34.3]} 12. b5 {[%clk 0:01:36.7]} 12... Na5
{[%clk 0:02:20.7]} 13. Qa4 {[%clk 0:01:30]} 13... b6 {[%clk 0:02:13]} 14. Nd1
{[%clk 0:01:23.2]} 14... Nb7 {[%clk 0:01:54.6]} 15. Nb2 {[%clk 0:01:18.8]} 15...
Nd6 {[%clk 0:01:46.4]} 16. Rfd1 {[%clk 0:01:01.5]} 16... Bg4 {[%clk 0:01:40.9]}
17. h3 {[%clk 0:00:53.6]} 17... Bh5 {[%clk 0:01:39.5]} 18. g4 {[%clk 0:00:50.2]}
18... Bg6 {[%clk 0:01:38.7]} 19. g5 {[%clk 0:00:27.7]} 19... Nfe4 {[%clk
0:01:37.6]} 20. Bd3 {[%clk 0:00:18.3]} 20... Nxg5 {[%clk 0:01:32.8]} 21. Bxg6
{[%clk 0:00:12.9]} 21... Nxf3+ {[%clk 0:01:30.6]} 22. Kf1 {[%clk 0:00:08.2]}
22... fxg6 {[%clk 0:01:24.2]} 23. Nd3 {[%clk 0:00:06.7]} 23... Ne4 {[%clk
0:01:20.7]} 24. Qc2 {[%clk 0:00:01.2]} 24... Nfxd2+ {[%clk 0:01:15.5]} 0-1